bitfinex-derivatives/quotes_SOLF0:USTF0_20250421
["timestamp","ask_amount","ask_price","bid_price","bid_amount"]
[1745264809853,16.25070837,136.57,136.54,0.04999624]
[1745264810154,7.3222,136.56,136.54,0.04999624]
[1745264810552,16.25070837,136.57,136.54,0.04999624]
[1745264810753,7.3219,136.56,136.54,0.04999624]
[1745264811155,0.04939227,136.57,136.55,7.3221]
[1745264812457,0.04939227,136.57,136.56,7.3219]
[1745264812955,372.3194,136.61,136.57,7.321]
[1745264813151,7.3194,136.61,136.57,7.321]
[1745264813556,7.3198,136.6,136.57,7.321]
[1745264813850,7.3198,136.6,136.55,28.1]
[1745264814055,7.37294627,136.6,136.57,0.0465657]
[1745264816355,0.05314627,136.6,136.57,0.0465657]
[1745264818059,7.3208,136.58,136.57,0.0465657]
[1745264823060,0.05314627,136.6,136.57,0.0465657]
[1745264823963,16.2013161,136.59,136.52,28.1]
[1745264824161,23.5229161,136.57,136.53,7.3232]
[1745264824361,16.2013161,136.57,136.53,7.3232]
[1745264824566,7.3221,136.56,136.52,35.4237]
[1745264825053,16.2013161,136.53,136.49,28.68]
[1745264825257,7.324,136.52,136.49,28.68]
[1745264825458,16.2013161,136.51,136.5,0.05062968]
[1745264825757,16.2013161,136.51,136.46,28.68]
[1745264826155,16.2013161,136.49,136.46,28.68]
[1745264826859,16.25688779,136.49,136.46,36.06026407]
[1745264827065,16.25688779,136.49,136.46,28.73326407]
[1745264827864,16.25688779,136.49,136.47,7.3265]
[1745264828069,16.25688779,136.49,136.46,28.73326407]
[1745264828459,16.25688779,136.49,136.46,36.06046407]
[1745264828656,0.05557169,136.49,136.46,36.06046407]
[1745264830764,16.25688779,136.49,136.46,28.73326407]
[1745264831065,0.05557169,136.49,136.46,36.06016407]
[1745264831263,16.25688779,136.49,136.46,28.73326407]
[1745264831463,16.25688779,136.49,136.46,0.05326407]
[1745264832165,23.58278779,136.49,136.46,0.05326407]
[1745264832364,16.25688779,136.49,136.46,0.05326407]
[1745264832663,7.3264,136.48,136.46,0.05326407]
[1745264833059,16.25688779,136.49,136.46,0.05326407]
[1745264833265,7.3262,136.48,136.46,0.05326407]
[1745264833460,16.25688779,136.49,136.46,0.05326407]
[1745264833964,23.58278779,136.49,136.46,0.05326407]
[1745264837068,0.05557169,136.49,136.46,0.05326407]
[1745264837367,367.0462,136.58,136.47,44.8813161]
[1745264837556,7.3225,136.55,136.5,7.3249]
[1745264837761,383.2475161,136.58,136.47,44.8813161]
[1745264838065,7.322,136.56,136.47,44.8813161]
[1745264838467,0.04941597,136.53,136.5,0.04647747]
[1745264839165,7.3243,136.52,136.5,0.04647747]
[1745264839367,16.2013161,136.52,136.5,0.04647747]
[1745264839762,7.3245,136.51,136.5,0.04647747]
[1745264840766,28.7,136.52,136.5,0.04647747]
[1745264841163,36.0245,136.52,136.5,0.04647747]
[1745264841467,44.9013161,136.52,136.5,0.04647747]
[1745264841667,36.0244,136.52,136.5,0.04647747]
[1745264842074,28.7,136.52,136.5,0.04647747]
[1745264842365,36.0241,136.52,136.5,0.04647747]
[1745264844670,7.3245,136.51,136.5,0.04647747]
[1745264844970,28.7,136.52,136.44,30.7008]
[1745264845570,7.3254,136.5,136.46,7.3272]
[1745264846071,0.0527575,136.49,136.47,0.04998036]
[1745264846370,7.3785575,136.49,136.47,0.04998036]
[1745264846973,7.3262,136.48,136.47,0.04998036]
[1745264847865,0.0527575,136.49,136.41,28.7]
[1745264848268,2.0541,136.5,136.42,7.3289]
[1745264848467,367.0541,136.5,136.41,28.7]
[1745264848667,367.0541,136.5,136.42,7.3293]
[1745264848873,7.3277,136.46,136.42,7.3293]
[1745264849072,7.3277,136.46,136.45,0.05125812]
[1745264849573,7.37652359,136.47,136.45,0.05125812]
[1745264849875,0.04952359,136.47,136.45,0.05125812]
[1745264850071,7.3272,136.46,136.45,0.05125812]
[1745264850976,7.3284,136.44,136.4,2.0289]
[1745264851171,54.65212772,136.48,136.39,4.0647]
[1745264851476,4.2133,136.47,136.4,7.3302]
[1745264851674,7.3286,136.44,136.4,7.3302]
[1745264851975,4.2133,136.47,136.39,4.0647]
[1745264852177,7.37609274,136.43,136.41,0.05084012]
[1745264852573,0.04689274,136.43,136.41,0.05084012]
[1745264852875,25.95212772,136.42,136.33,1.995]
[1745264853080,369.2133,136.41,136.33,7.3341]
[1745264853274,28.7,136.4,136.33,7.3341]
[1745264853473,28.7,136.4,136.32,2.0338]
[1745264853672,28.7,136.4,136.33,7.3342]
[1745264853874,0.05361691,136.37,136.35,0.04851253]
[1745264854269,7.38601691,136.37,136.35,0.04851253]
[1745264855576,0.05361691,136.37,136.35,0.04851253]
[1745264860082,0.05361691,136.37,136.36,7.3326]
[1745264860687,365.0,136.41,136.37,7.3317]
[1745264860889,365.0,136.41,136.35,0.04851253]
[1745264861279,365.0,136.41,136.37,7.3317]
[1745264861484,365.0,136.41,136.35,0.04851253]
[1745264861684,25.95212772,136.45,136.37,28.6]
[1745264861888,0.05121139,136.39,136.37,28.6]
[1745264862187,25.95212772,136.45,136.4,0.04864928]
[1745264862378,0.04901382,136.39,136.36,4.1026]
[1745264862588,28.6,136.43,136.36,4.1026]
[1745264862785,0.05514033,136.39,136.36,4.15289708]
[1745264862982,7.38644033,136.39,136.36,0.05029708]
[1745264863491,0.05514033,136.39,136.36,0.05029708]
[1745264866195,0.05514033,136.39,136.36,7.38279708]
[1745264874205,0.05514033,136.39,136.37,7.332]
[1745264878806,0.05514033,136.39,136.38,7.3315]
[1745264879607,23.57588325,136.43,136.36,0.05029708]
[1745264880010,23.57588325,136.43,136.39,7.3307]
[1745264880508,7.3294,136.42,136.39,7.3307]
[1745264880709,7.38201668,136.42,136.4,0.05211374]
[1745264882705,0.05261668,136.42,136.4,0.05211374]
[1745264883209,365.0,136.45,136.43,7.3287]
[1745264883408,16.24678325,136.48,136.42,28.6]
[1745264883806,23.57328325,136.48,136.42,28.6]
[1745264884405,0.05082936,136.46,136.44,0.05207021]
[1745264885410,0.05082936,136.46,136.44,7.38027021]
[1745264886506,0.05082936,136.46,136.44,0.05207021]
[1745264887108,16.29761261,136.46,136.44,0.05207021]
[1745264887708,7.3278,136.45,136.44,0.05207021]
[1745264889114,23.62511261,136.46,136.44,0.05207021]
[1745264889407,0.05082936,136.46,136.44,0.05207021]
[1745264890414,0.05082936,136.46,136.44,7.38007021]
[1745264895618,0.05082936,136.46,136.45,7.3278]
[1745264897117,365.0,136.51,136.44,0.05207021]
[1745264897311,16.24678325,136.52,136.44,2.13667021]
[1745264897511,16.24678325,136.5,136.45,7.3275]
[1745264897720,23.57188325,136.5,136.45,7.3275]
[1745264897913,16.24678325,136.5,136.44,2.0846]
[1745264898116,0.05136349,136.49,136.46,7.37670041]
[1745264900017,0.05136349,136.49,136.46,0.04970041]
[1745264901617,7.3267,136.47,136.46,0.04970041]
[1745264907121,7.3264,136.48,136.46,0.04970041]
[1745264908122,7.3267,136.47,136.46,0.04970041]
[1745264908625,7.3263,136.48,136.46,0.04970041]
[1745264910927,28.27136349,136.49,136.46,0.04970041]
[1745264911328,7.3267,136.47,136.46,0.04970041]
[1745264915826,381.24678325,136.48,136.4,28.14]
[1745264916030,16.24678325,136.44,136.4,28.14]
[1745264916229,16.24678325,136.44,136.38,1.9757]
[1745264916532,7.3305,136.4,136.37,608.62]
[1745264916727,16.24678325,136.42,136.37,608.62]
[1745264917031,7.37971465,136.41,136.38,7.38140214]
[1745264917329,7.37971465,136.41,136.38,0.05010214]
[1745264917631,7.3305,136.4,136.38,0.05010214]
[1745264917833,0.04951465,136.41,136.38,0.05010214]
[1745264919131,7.3307,136.4,136.38,0.05010214]
[1745264920333,7.37971465,136.41,136.38,0.05010214]
[1745264920533,0.04951465,136.41,136.38,0.05010214]
[1745264921825,0.04951465,136.41,136.4,7.3304]
[1745264927641,0.04951465,136.41,136.38,0.05010214]
[1745264929946,0.04951465,136.41,136.4,7.3304]
[1745264930244,0.04951465,136.41,136.38,0.05010214]
[1745264930448,0.04951465,136.41,136.39,7.3307]
[1745264930947,0.04951465,136.41,136.38,7.38140214]
[1745264931147,0.04951465,136.41,136.38,0.05010214]
[1745264931547,7.3306,136.4,136.38,0.05010214]
[1745264932647,7.331,136.39,136.38,0.05010214]
[1745264933248,7.3307,136.4,136.38,0.05010214]
[1745264933849,7.331,136.39,136.38,0.05010214]
[1745264936653,7.3324,136.37,136.34,28.14]
[1745264937355,7.3326,136.36,136.34,28.14]
[1745264937652,16.24678325,136.4,136.34,28.14]
[1745264937854,0.05581066,136.36,136.34,28.19541232]
[1745264939253,0.05581066,136.36,136.34,35.52901232]
[1745264940851,0.05581066,136.36,136.35,7.3331]
[1745264942651,365.0,136.41,136.34,28.19541232]
[1745264942950,365.0,136.41,136.35,4.0356]
[1745264943349,365.0,136.41,136.35,20.28238325]
[1745264943550,23.49235127,136.47,136.37,16.24678325]
[1745264943754,7.3276,136.46,136.38,28.14]
[1745264943951,18.22308325,136.47,136.38,28.14]
[1745264944558,7.3269,136.47,136.39,16.24678325]
[1745264944946,0.05495021,136.44,136.43,7.3285]
[1745264945151,0.05495021,136.44,136.42,28.18699987]
[1745264946252,0.05495021,136.44,136.42,35.51629987]
[1745264947758,0.05495021,136.44,136.43,7.3288]
[1745264948253,50.35608325,136.51,136.45,7.3274]
[1745264948554,50.35608325,136.51,136.42,28.14]
[1745264948859,7.3278,136.45,136.42,28.14]
[1745264949048,16.24678325,136.47,136.42,28.14]
[1745264949246,16.24678325,136.45,136.39,28.12]
[1745264949446,16.24678325,136.45,136.43,0.05561646]
[1745264949659,0.05063361,136.46,136.43,0.05561646]
[1745264949853,0.05063361,136.46,136.44,7.328]
[1745264950052,0.05063361,136.46,136.43,28.17561646]
[1745264950446,0.05063361,136.46,136.43,35.50411646]
[1745264950647,0.05063361,136.46,136.43,28.17561646]
[1745264950852,0.05063361,136.46,136.45,7.3278]
[1745264951557,0.05063361,136.46,136.43,28.17561646]
[1745264951958,0.05063361,136.46,136.45,7.3278]
[1745264953458,0.05063361,136.46,136.44,7.328]
[1745264954259,0.05063361,136.46,136.45,7.3278]
[1745264954558,7.3259,136.49,136.45,7.3278]
[1745264954962,365.0,136.5,136.45,7.3278]
[1745264955157,7.3256,136.49,136.45,7.3278]
[1745264955357,44.36678325,136.53,136.43,44.36678325]
[1745264955557,44.36678325,136.53,136.44,2.0177]
[1745264955760,0.02610681,136.49,136.47,0.05607437]
[1745264955959,0.02610681,136.49,136.47,35.50247437]
[1745264956861,0.02610681,136.49,136.48,7.3262]
[1745264959465,0.02610681,136.49,136.47,28.17607437]
[1745264960166,0.02610681,136.49,136.47,35.50277437]
[1745264960663,7.35190681,136.49,136.47,28.17607437]
[1745264960962,0.02610681,136.49,136.47,0.05607437]
[1745264961558,7.3262,136.48,136.47,0.05607437]
[1745264961764,0.02610681,136.49,136.47,0.05607437]
[1745264962062,7.35200681,136.49,136.47,0.05607437]
[1745264962765,0.02610681,136.49,136.47,0.05607437]
[1745264963268,7.35180681,136.49,136.47,0.05607437]
[1745264965767,7.3262,136.48,136.47,0.05607437]
[1745264969169,7.35200681,136.49,136.47,0.05607437]
[1745264969464,0.02610681,136.49,136.47,0.05607437]
[1745264969665,7.35200681,136.49,136.47,0.05607437]
[1745264971266,17.73546895,136.49,136.47,0.05607437]
[1745264971761,10.40956895,136.49,136.47,0.05607437]
[1745264971961,0.02610681,136.49,136.47,0.05607437]
[1745264972565,10.40956895,136.49,136.47,0.05607437]
[1745264972965,17.73546895,136.49,136.47,0.05607437]
[1745264974066,0.02610681,136.49,136.47,7.38267437]
[1745264976364,0.02610681,136.49,136.47,0.05607437]
[1745264976566,10.38346214,136.48,136.47,0.05607437]
[1745264977071,17.70966214,136.48,136.47,0.05607437]
[1745264978568,7.3273,136.46,136.44,28.12]
[1745264978766,10.38346214,136.45,136.44,28.12]
[1745264978969,10.38346214,136.45,136.43,7.3286]
[1745264979675,10.43931914,136.45,136.43,7.37559946]
[1745264981876,10.43931914,136.45,136.43,0.04699946]
[1745264983178,7.3283,136.44,136.43,0.04699946]
[1745264985780,7.3283,136.44,136.43,0.04699946]
[1745264986084,10.43931914,136.45,136.38,28.12]
[1745264986377,10.43931914,136.45,136.35,28.12]
[1745264986378,10.38346214,136.39,136.35,28.12]
[1745264987078,0.04876749,136.38,136.36,7.38391103]
[1745264987882,0.04876749,136.38,136.36,0.05161103]
[1745264990877,0.04876749,136.38,136.36,7.38411103]
[1745264992987,0.04876749,136.38,136.36,17.76757317]
[1745264993282,0.04876749,136.38,136.37,7.3321]
[1745264993483,28.12,136.46,136.36,14.53217317]
[1745264993682,10.38346214,136.41,136.34,28.12]
[1745264993986,10.38346214,136.41,136.36,10.38346214]
[1745264994182,17.71306214,136.42,136.36,10.38346214]
[1745264994580,0.04683744,136.4,136.38,0.0464355]
[1745264995784,0.04683744,136.4,136.38,7.3779355]
[1745264997886,0.04683744,136.4,136.38,0.0464355]
[1745264998586,0.04683744,136.4,136.38,7.3779355]
[1745264998888,10.38346214,136.46,136.38,10.42989764]
[1745264999087,10.38346214,136.46,136.4,17.71356214]
[1745264999282,10.38346214,136.46,136.41,28.12]
[1745264999586,7.328,136.45,136.41,28.12]
[1745264999791,10.38346214,136.45,136.41,28.12]
[1745264999986,7.36217571,136.44,136.42,0.05316642]
[1745265000282,10.38346214,136.43,136.29,594.9123]
[1745265000492,7.3335,136.35,136.3,30.0836]
[1745265000690,10.38346214,136.36,136.32,7.3345]
[1745265000983,372.3302,136.41,136.34,10.38346214]
[1745265001190,4.1562,136.42,136.38,7.3312]
[1745265001391,10.38346214,136.41,136.36,10.38346214]
[1745265001585,0.05477928,136.41,136.39,0.05605704]
[1745265002590,10.38346214,136.4,136.39,0.05605704]
[1745265002790,10.38346214,136.4,136.32,10.38346214]
[1745265002997,10.38346214,136.35,136.3,7.3355]
[1745265003191,10.38346214,136.35,136.3,10.38346214]
[1745265003587,10.38346214,136.35,136.32,7.3344]
[1745265003786,17.71586214,136.37,136.32,10.38346214]
[1745265003990,0.05442484,136.35,136.32,0.05324467]
[1745265004188,0.05442484,136.35,136.32,7.38774467]
[1745265004691,28.12,136.43,136.37,7.332]
[1745265004886,10.38346214,136.41,136.37,7.332]
[1745265005190,38.50346214,136.43,136.38,17.71476214]
[1745265005390,28.12,136.43,136.38,7.3313]
[1745265005582,28.12,136.43,136.37,28.12]
[1745265005891,7.3302,136.41,136.39,0.04881719]
[1745265006788,0.05146806,136.42,136.39,0.04881719]
[1745265007691,0.05146806,136.42,136.39,7.37961719]
[1745265008291,7.38086806,136.42,136.39,7.37961719]
[1745265008492,0.05146806,136.42,136.39,0.04881719]
[1745265008993,7.3304,136.4,136.39,0.04881719]
[1745265009291,0.05146806,136.42,136.39,0.04881719]
[1745265009994,7.3304,136.4,136.39,0.04881719]
[1745265010587,7.3302,136.41,136.39,0.04881719]
[1745265010993,0.05146806,136.42,136.39,0.04881719]
[1745265011191,7.38116806,136.42,136.39,7.37971719]
[1745265011389,0.05146806,136.42,136.39,0.04881719]
[1745265011590,16.28959865,136.42,136.39,0.04881719]
[1745265011793,7.3304,136.4,136.39,0.04881719]
[1745265012392,0.05146806,136.42,136.39,0.04881719]
[1745265012788,0.05146806,136.42,136.41,7.3299]
[1745265014394,0.05146806,136.42,136.41,35.4299]
[1745265015394,20.22113059,136.48,136.43,7.3285]
[1745265015896,7.3271,136.47,136.43,7.3285]
[1745265016194,20.22113059,136.48,136.42,7.3292]
[1745265016389,0.03690626,136.45,136.43,0.05581611]
[1745265017597,7.36470626,136.45,136.43,0.05581611]
[1745265017897,0.03690626,136.45,136.43,0.05581611]
[1745265019498,7.36490626,136.45,136.43,0.05581611]
[1745265019901,0.03690626,136.45,136.43,0.05581611]
[1745265020095,7.3283,136.44,136.43,0.05581611]
[1745265023409,7.3311,136.39,136.34,6.0417]
[1745265023612,16.23813059,136.42,136.35,28.1]
[1745265024116,7.3313,136.39,136.36,7.3323]
[1745265024409,16.23813059,136.42,136.36,7.3323]
[1745265024717,0.05597537,136.39,136.37,7.332]
[1745265025012,0.05597537,136.39,136.36,0.05040549]
[1745265025214,0.05597537,136.39,136.38,7.3315]
[1745265025408,365.0,136.47,136.36,16.28853608]
[1745265025604,7.3283,136.45,136.36,16.23813059]
[1745265025812,32.1326,136.48,136.38,16.23813059]
[1745265026012,4.0326,136.48,136.39,33.9545]
[1745265026310,7.3275,136.46,136.39,33.9545]
[1745265026511,0.036747,136.45,136.42,7.37548955]
[1745265027411,0.036747,136.45,136.42,0.04618955]
[1745265027712,0.036747,136.45,136.43,28.1]
[1745265027911,7.3253,136.5,136.43,28.1]
[1745265028112,365.0,136.51,136.44,4.0955]
[1745265028509,372.3249,136.51,136.47,7.3267]
[1745265028714,365.0,136.51,136.47,28.1]
[1745265029114,365.0,136.51,136.48,0.0518607]
[1745265029313,7.3237,136.53,136.49,7.3253]
[1745265029517,7.3237,136.53,136.48,0.0518607]
[1745265029715,7.3237,136.53,136.48,7.3777607]
[1745265030016,7.3237,136.53,136.48,0.0518607]
[1745265030220,7.3231,136.54,136.49,7.3252]
[1745265030517,1.9706,136.55,136.49,7.3252]
[1745265030815,7.3237,136.53,136.48,7.3776607]
[1745265031119,7.3237,136.53,136.48,0.0518607]
[1745265031919,44.33813059,136.56,136.48,0.0518607]
[1745265032119,385.21883059,136.58,136.48,16.28999129]
[1745265032312,16.23813059,136.56,136.47,28.1]
[1745265032513,7.3226,136.55,136.52,0.05074853]
[1745265034315,385.21883059,136.58,136.52,0.05074853]
[1745265035320,7.3219,136.56,136.52,7.37454853]
[1745265035827,7.3216,136.57,136.53,7.3232]
[1745265036024,1.98,136.59,136.52,0.05074853]
[1745265036526,7.3211,136.58,136.54,7.3226]
[1745265036924,7.3211,136.58,136.55,0.04749981]
[1745265037734,7.3211,136.58,136.55,7.36979981]
[1745265039525,44.33813059,136.62,136.55,28.12749981]
[1745265040129,28.1,136.62,136.55,28.12749981]
[1745265040424,7.32,136.6,136.56,7.3216]
[1745265040631,28.1,136.62,136.56,7.3216]
[1745265041133,7.3206,136.59,136.56,7.3216]
[1745265041533,28.1,136.62,136.55,35.44959981]
[1745265041738,28.1,136.62,136.55,28.12749981]
[1745265042033,16.23813059,136.61,136.55,35.44969981]
[1745265042836,7.3213,136.58,136.55,35.44969981]
[1745265043327,16.23813059,136.61,136.55,35.44969981]
[1745265043530,7.3212,136.58,136.55,35.44969981]
[1745265044939,7.3212,136.58,136.56,7.3218]
[1745265045636,7.3212,136.58,136.55,35.44969981]
[1745265046540,7.3204,136.59,136.55,35.44969981]
[1745265047942,7.3209,136.58,136.55,35.44969981]
[1745265050644,7.3204,136.59,136.55,35.44969981]
[1745265051144,7.3204,136.59,136.56,7.3218]
[1745265051340,7.3199,136.6,136.55,28.12749981]
[1745265051844,7.3204,136.59,136.56,7.3216]
[1745265052039,16.23813059,136.61,136.55,28.12749981]
[1745265052842,7.3211,136.58,136.55,35.44979981]
[1745265054143,7.3214,136.57,136.55,28.12749981]
[1745265054446,16.23813059,136.57,136.55,0.04749981]
[1745265054647,7.3219,136.56,136.55,0.04749981]
[1745265055450,16.23813059,136.59,136.55,0.04749981]
[1745265055638,16.23813059,136.61,136.55,7.36959981]
[1745265055948,7.3211,136.58,136.55,7.36959981]
[1745265056541,16.23813059,136.61,136.55,0.04749981]
[1745265056948,7.3205,136.59,136.56,7.3215]
[1745265057348,7.3205,136.59,136.55,0.04749981]
[1745265057549,7.3205,136.59,136.55,7.36979981]
[1745265058247,7.3208,136.58,136.55,7.36979981]
[1745265058449,7.3208,136.58,136.55,0.04749981]
[1745265060251,7.3215,136.57,136.55,0.04749981]
[1745265060552,16.23813059,136.59,136.55,0.04749981]
[1745265060741,7.3219,136.56,136.55,0.04749981]
[1745265061849,16.23813059,136.59,136.55,0.04749981]
[1745265062349,7.3219,136.56,136.55,0.04749981]
[1745265063848,7.3215,136.57,136.55,0.04749981]
[1745265065253,7.3211,136.58,136.55,0.04749981]
[1745265065552,16.23813059,136.6,136.55,7.36949981]
[1745265066056,365.0,136.63,136.56,28.06]
[1745265066255,365.0,136.63,136.57,7.3209]
[1745265066456,7.3195,136.61,136.58,0.05330429]
[1745265066856,7.3195,136.61,136.58,7.37410429]
[1745265067157,7.3198,136.6,136.58,7.37410429]
[1745265067354,365.0,136.63,136.58,7.37410429]
[1745265067957,7.3196,136.61,136.58,7.37410429]
[1745265068855,7.3197,136.6,136.58,0.05330429]
[1745265069357,7.3203,136.59,136.58,0.05330429]
[1745265070660,7.3222,136.56,136.53,35.3833]
[1745265071860,7.37465593,136.56,136.53,35.43518317]
[1745265073462,0.05245593,136.56,136.54,7.3229]
[1745265075464,7.37445593,136.56,136.53,35.43508317]
[1745265075864,0.05245593,136.56,136.53,28.11188317]
[1745265076065,7.37455593,136.56,136.53,28.11188317]
[1745265076460,0.05245593,136.56,136.53,35.43488317]
[1745265076862,7.37435593,136.56,136.53,35.43488317]
[1745265077268,0.05245593,136.56,136.54,7.3229]
[1745265080464,0.05245593,136.56,136.55,7.3224]
[1745265080665,0.05245593,136.56,136.53,28.11188317]
[1745265081070,0.05245593,136.56,136.54,7.3227]
[1745265081373,0.05245593,136.56,136.54,35.3827]
[1745265085072,7.37445593,136.56,136.54,28.06]
[1745265086179,7.37445593,136.56,136.54,35.3829]
[1745265086974,0.05245593,136.56,136.55,7.3224]
[1745265087481,0.05245593,136.56,136.54,28.06]
[1745265087675,0.05245593,136.56,136.54,35.3826]
[1745265090083,7.37435593,136.56,136.54,35.3826]
[1745265090281,10.42277192,136.56,136.54,28.06]
[1745265090580,7.3224,136.55,136.54,28.06]
[1745265092384,7.3224,136.55,136.53,0.05188317]
[1745265092385,7.3229,136.54,136.53,0.05188317]
[1745265092684,17.69321599,136.54,136.53,0.05188317]
[1745265094583,10.37031599,136.48,136.46,28.06]
[1745265095388,16.22793959,136.5,136.46,28.06]
[1745265095587,7.3256,136.49,136.48,0.04778834]
[1745265098187,0.05279861,136.51,136.48,0.04778834]
[1745265098686,0.05279861,136.51,136.48,16.27572793]
[1745265098892,6.0366,136.59,136.5,16.22793959]
[1745265099192,44.28793959,136.62,136.52,16.22793959]
[1745265099489,44.28793959,136.62,136.54,7.3226]
[1745265099691,44.28793959,136.62,136.55,28.06]
[1745265099892,7.3212,136.58,136.57,0.05305536]
[1745265103494,7.36780534,136.59,136.57,0.05305536]
[1745265104099,0.04740534,136.59,136.57,0.05305536]
[1745265104797,0.04740534,136.59,136.57,7.37415536]
[1745265106099,0.04740534,136.59,136.57,0.05305536]
[1745265107002,7.36770534,136.59,136.57,0.05305536]
[1745265107201,0.04740534,136.59,136.57,0.05305536]
[1745265107597,7.3208,136.58,136.57,0.05305536]
[1745265114704,0.04740534,136.59,136.52,28.04]
[1745265115009,16.22793959,136.58,136.52,28.04]
[1745265115214,7.3235,136.53,136.52,28.04]
[1745265115704,7.3246,136.51,136.49,35.3654]
[1745265115908,7.3246,136.51,136.49,28.09474492]
[1745265116111,0.05430747,136.51,136.49,28.09474492]
[1745265117406,7.37890747,136.51,136.49,28.09474492]
[1745265117808,0.05430747,136.51,136.49,28.09474492]
[1745265118014,0.05430747,136.51,136.49,35.42024492]
[1745265118711,0.05430747,136.51,136.49,28.09474492]
[1745265119615,0.05430747,136.51,136.49,35.42004492]
[1745265119813,2.0498,136.57,136.49,44.32268451]
[1745265120113,7.3235,136.53,136.49,51.64798451]
[1745265120415,2.0498,136.57,136.49,28.09474492]
[1745265120914,7.3243,136.52,136.49,28.09474492]
[1745265121714,7.3238,136.53,136.49,35.42014492]
[1745265121914,0.04931483,136.54,136.49,44.32268451]
[1745265122317,0.04931483,136.54,136.5,7.3248]
[1745265122515,0.04931483,136.54,136.49,44.32268451]
[1745265123215,7.3237,136.53,136.5,7.3251]
[1745265123413,0.04931483,136.54,136.49,44.32268451]
[1745265124416,0.04931483,136.54,136.51,7.3241]
[1745265124611,0.04931483,136.54,136.51,16.22793959]
[1745265124817,4.0089,136.61,136.53,16.22793959]
[1745265125010,4.0089,136.61,136.54,28.04]
[1745265125718,7.3211,136.58,136.54,35.3625]
[1745265125917,7.3211,136.58,136.56,0.05370172]
[1745265128419,7.3204,136.59,136.56,0.05370172]
[1745265130227,411.19333959,136.64,136.56,0.05370172]
[1745265130421,16.22793959,136.6,136.56,0.05370172]
[1745265130823,7.3213,136.57,136.56,0.05370172]
[1745265132826,7.321,136.58,136.56,0.05370172]
[1745265136828,7.3213,136.57,136.56,0.05370172]
[1745265137428,16.22793959,136.62,136.56,0.05370172]
[1745265137628,7.321,136.58,136.56,0.05370172]
[1745265139024,7.3213,136.57,136.56,0.05370172]
[1745265140732,7.321,136.58,136.56,0.05370172]
[1745265141430,7.3205,136.59,136.56,7.37540172]
[1745265142531,7.3199,136.6,136.57,7.3213]
[1745265143025,7.3199,136.6,136.57,7.37570747]
[1745265143232,7.3199,136.6,136.58,28.04]
[1745265144929,7.3194,136.61,136.58,35.3608]
[1745265146829,7.3194,136.61,136.59,7.3202]
[1745265147233,7.3194,136.61,136.58,28.04]
[1745265147436,7.3194,136.61,136.58,45.72343336]
[1745265147733,7.3197,136.6,136.58,38.40293336]
[1745265148838,7.3197,136.6,136.58,45.72353336]
[1745265149136,7.3194,136.61,136.58,45.72353336]
[1745265150042,7.3198,136.6,136.58,45.72353336]
[1745265150740,7.3198,136.6,136.58,38.40293336]
[1745265152840,7.3195,136.61,136.58,38.40293336]
[1745265153041,10.36293336,136.63,136.58,38.40293336]
[1745265153440,7.3193,136.61,136.58,45.72373336]
[1745265153734,1.9254,136.64,136.58,38.40293336]
[1745265154040,10.36293336,136.65,136.58,38.40293336]
[1745265154240,3.9891,136.66,136.6,10.36293336]
[1745265154432,3.9891,136.66,136.6,10.41599603]
[1745265154633,7.3181,136.63,136.61,7.3191]
[1745265154830,3.9891,136.66,136.62,38.38293336]
[1745265155136,10.36293336,136.67,136.62,38.38293336]
[1745265155438,10.36293336,136.67,136.63,7.36941177]
[1745265156239,10.36293336,136.67,136.63,0.05131177]
[1745265157344,7.3176,136.64,136.63,0.05131177]
[1745265158438,7.3173,136.65,136.63,0.05131177]
[1745265158643,12.37353336,136.68,136.63,0.05131177]
[1745265159038,7.3168,136.66,136.64,10.36293336]
[1745265159443,7.3168,136.66,136.63,0.05131177]
[1745265159638,10.36293336,136.66,136.63,0.05131177]
[1745265159842,12.37353336,136.68,136.63,0.05131177]
[1745265160244,10.36293336,136.66,136.63,0.05131177]
[1745265160450,10.36293336,136.64,136.63,0.05131177]
[1745265161043,17.68053336,136.64,136.63,0.05131177]
[1745265161445,10.36293336,136.64,136.59,28.02]
[1745265161645,7.3195,136.61,136.59,28.02]
[1745265161845,10.36293336,136.62,136.59,28.02]
[1745265162245,7.3192,136.61,136.59,28.02]
[1745265162745,7.36774592,136.61,136.59,28.06903148]
[1745265163349,0.04854592,136.61,136.59,45.75216484]